bitfinex/quotes_SOLUSD_20241222
["timestamp","ask_amount","ask_price","bid_price","bid_amount"]
[1734848878381,0.91654412,182.78,182.7,0.82068285]
[1734848878680,0.91654412,182.78,182.69,0.5307882]
[1734848879656,20.91654412,182.78,182.69,0.5307882]
[1734848879950,22.28424412,182.78,182.69,0.5307882]
[1734848881571,20.91654412,182.78,182.69,0.5307882]
[1734848881772,20.91654412,182.78,182.69,1.35155991]
[1734848881941,20.91654412,182.78,182.69,19.49565111]
[1734848883067,0.91654412,182.78,182.69,19.49565111]
[1734848884372,0.91654412,182.78,182.69,1.35155991]
[1734848884697,0.91654412,182.78,182.69,0.5307882]
[1734848885043,20.0,182.76,182.69,0.5307882]
[1734848885261,0.91654412,182.75,182.69,0.5307882]
[1734848885875,0.91654412,182.77,182.69,0.5307882]
[1734848886478,20.0,182.76,182.69,0.5307882]
[1734848886660,0.91654412,182.75,182.69,0.5307882]
[1734848891780,20.0,182.77,182.69,0.5307882]
[1734848891963,0.91654412,182.77,182.69,1.35159944]
[1734848892157,20.91654412,182.77,182.69,1.35159944]
[1734848893064,23.776884,182.76,182.69,0.5307882]
[1734848893260,0.91654412,182.75,182.69,0.5307882]
[1734848895368,23.776884,182.74,182.69,0.5307882]
[1734848895557,0.91654412,182.73,182.69,0.5307882]
[1734848895752,23.776884,182.74,182.69,0.5307882]
[1734848895972,24.69342812,182.76,182.69,0.5307882]
[1734848905888,0.91654412,182.76,182.69,0.5307882]
[1734848906194,0.91654412,182.77,182.69,0.5307882]
[1734848906766,0.91654412,182.8,182.71,24.3689912]
[1734848906972,0.91654412,182.8,182.72,2.635]
[1734848907197,0.91654412,182.82,182.72,2.635]
[1734848908268,23.776884,182.81,182.72,2.635]
[1734848908473,0.91654412,182.8,182.72,2.635]
[1734848924615,23.776884,182.79,182.72,2.635]
[1734848924816,23.776884,182.77,182.72,2.635]
[1734848925017,0.91654412,182.76,182.72,2.635]
[1734848925215,0.91654412,182.78,182.72,2.635]
[1734848925717,23.776884,182.77,182.72,2.635]
[1734848925916,0.91654412,182.76,182.72,2.635]
[1734848927632,0.91654412,182.76,182.71,6.2249]
[1734848927633,23.776884,182.75,182.71,6.2249]
[1734848927810,23.776884,182.75,182.69,1.7167882]
[1734848927811,0.91654412,182.74,182.69,1.7167882]
[1734848928195,2.28434412,182.78,182.69,1.7167882]
[1734848928411,23.776884,182.77,182.69,1.7167882]
[1734848928717,0.91654412,182.76,182.69,1.7167882]
[1734848936424,2.28394412,182.82,182.72,11.33092333]
[1734848937011,2.28394412,182.82,182.71,18.81152829]
[1734848937214,0.91654412,182.81,182.71,18.81152829]
[1734848939128,0.91654412,182.81,182.72,11.33092333]
[1734848939721,0.91654412,182.81,182.71,18.81152829]
[1734848939931,0.91654412,182.81,182.71,17.99082333]
[1734848940733,23.776884,182.8,182.71,6.6599]
[1734848940905,0.91654412,182.79,182.71,6.6599]
[1734848941102,20.0,182.77,182.71,6.6599]
[1734848941308,0.91654412,182.76,182.71,6.6599]
[1734848946830,23.776884,182.75,182.71,6.6599]
[1734848947134,0.91654412,182.74,182.69,1.7167882]
[1734848947521,23.776884,182.76,182.69,1.7167882]
[1734848947712,20.0,182.73,182.69,1.7167882]
[1734848949334,21.3681,182.73,182.69,1.7167882]
[1734848949518,20.0,182.71,182.58,2.6792]
[1734848949721,2.8434,182.72,182.58,2.6792]
[1734848949722,23.776884,182.66,182.58,2.6792]
[1734848949921,20.0,182.63,182.58,2.6792]
[1734848950323,20.0,182.59,182.55,8.31565278]
[1734848950813,20.0,182.59,182.53,8.903]
[1734848951229,2.2185228,182.69,182.55,11.33092333]
[1734848951422,20.0,182.65,182.57,11.33092333]
[1734848951750,7.71540917,182.7,182.59,20.23392333]
[1734848951751,20.0,182.67,182.59,20.23392333]
[1734848951944,20.0,182.67,182.6,0.82123491]
[1734848952629,7.71540917,182.7,182.61,11.33092333]
[1734848952824,1.3682,182.73,182.61,11.33092333]
[1734848953139,7.71540917,182.75,182.63,20.23392333]
[1734848953434,7.71540917,182.75,182.64,0.82103946]
[1734848954127,7.71540917,182.75,182.63,8.903]
[1734848954325,23.776884,182.74,182.63,8.903]
[1734848956717,20.0,182.71,182.63,8.903]
[1734848957438,8.49407503,182.84,182.7,11.33092333]
[1734848957643,8.49407503,182.84,182.72,11.33092333]
[1734848958364,8.49407503,182.84,182.71,0.82071203]
[1734848958365,2.20730101,182.85,182.71,12.15163536]
[1734848958521,1.3673,182.85,182.71,12.15163536]
[1734848958818,23.776884,182.84,182.71,12.15163536]
[1734848959237,20.0,182.81,182.71,12.15163536]
[1734848959646,23.776884,182.84,182.71,12.15163536]
[1734848960023,23.776884,182.84,182.71,18.9494823]
[1734848961032,20.0,182.81,182.71,18.9494823]
[1734848961249,20.0,182.81,182.71,0.82071203]
[1734848962545,23.776884,182.8,182.69,18.12877027]
[1734848963032,23.776884,182.8,182.7,18.94957254]
[1734848967243,20.0,182.77,182.69,18.12877027]
[1734848971041,20.0,182.77,182.7,18.12877027]
[1734848971343,20.0,182.77,182.69,18.12877027]
[1734848972861,20.0,182.78,182.69,18.12877027]
[1734848975762,23.776884,182.77,182.68,0.82075588]
[1734848975950,23.776884,182.77,182.67,10.03552012]
[1734848978456,20.0,182.74,182.67,9.2146]
[1734848984969,20.0,182.74,182.67,20.55280604]
[1734848985756,20.0,182.74,182.67,9.2146]
[1734848986269,23.776884,182.77,182.68,12.15918862]
[1734848986573,4.0209,182.8,182.68,12.15918862]
[1734848986753,4.0209,182.8,182.68,0.82098258]
[1734848987349,4.0209,182.8,182.68,12.15918862]
[1734848987650,23.776884,182.77,182.68,12.15918862]
[1734848987857,20.0,182.74,182.67,9.2146]
[1734848989485,20.0,182.7,182.63,6.3732]
[1734848990774,23.776884,182.73,182.63,6.3732]
[1734848991075,20.0,182.7,182.63,6.3732]
[1734848991776,20.0,182.7,182.64,12.15929864]
[1734848992664,1.3678,182.77,182.65,11.33820604]
[1734848992963,1.3678,182.77,182.66,0.82094226]
[1734848993356,1.3678,182.77,182.66,12.1591483]
[1734848993878,1.3678,182.77,182.67,11.33820604]
[1734848994051,1.3678,182.77,182.68,0.82088091]
[1734848995356,21.3678,182.77,182.68,0.82088091]
[1734849000368,21.3678,182.77,182.66,0.82088078]
[1734849001883,21.3678,182.77,182.66,12.15908682]
[1734849002377,21.3678,182.77,182.66,0.82088078]
[1734849002771,21.3678,182.77,182.67,0.82090712]
[1734849002968,21.3678,182.77,182.65,0.82090553]
[1734849003300,23.776884,182.76,182.65,0.82090553]
[1734849003707,23.776884,182.74,182.65,0.82090553]
[1734849003866,20.0,182.71,182.63,7.1942192]
[1734849007463,20.0,182.71,182.63,6.3732]
[1734849007656,23.776884,182.7,182.63,6.3732]
[1734849007882,20.0,182.67,182.63,6.3732]
[1734849008078,20.0,182.67,182.62,2.7529]
[1734849008288,43.776884,182.69,182.59,6.6592]
[1734849009188,1.3685,182.68,182.59,6.6592]
[1734849009390,23.776884,182.67,182.59,6.6592]
[1734849009635,20.0,182.64,182.59,6.6592]
[1734849011295,1.3685,182.68,182.59,6.6592]
[1734849011467,20.0,182.69,182.59,7.480545]
[1734849011869,20.0,182.69,182.59,6.6592]
[1734849012286,20.0,182.69,182.58,2.7565]
[1734849012493,20.0,182.69,182.55,6.6592]
[1734849012704,23.776884,182.68,182.55,6.6592]
[1734849012992,23.776884,182.64,182.55,6.6592]
[1734849013171,20.0,182.61,182.55,6.6592]
[1734849013386,20.0,182.61,182.56,0.82141804]
[1734849013592,1.3688,182.64,182.55,6.6592]
[1734849014813,1.3685,182.68,182.55,6.6592]
[1734849015210,20.0,182.64,182.55,6.6592]
[1734849015909,23.776884,182.63,182.55,6.6592]
[1734849017203,20.0,182.69,182.55,7.48070885]
[1734849017600,23.776884,182.64,182.55,7.48070885]
[1734849017805,20.0,182.61,182.55,7.48070885]
[1734849018289,20.0,182.61,182.55,6.6592]
[1734849019089,20.0,182.57,182.51,6.8625702]
[1734849019295,23.776884,182.56,182.51,6.8625702]
[1734849019509,20.0,182.53,182.51,0.7180702]
[1734849021522,20.0,182.57,182.51,0.7180702]
[1734849024704,26.1445,182.57,182.51,0.7180702]
[1734849027525,1.3689,182.62,182.52,6.1445]
[1734849029111,23.776884,182.59,182.52,6.1445]
[1734849029430,20.0,182.56,182.52,6.1445]
[1734849033311,1.369,182.62,182.52,6.1445]
[1734849033512,1.369,182.62,182.51,0.7180702]
[1734849033715,2.5983,182.61,182.51,0.7180702]
[1734849034038,10.26004281,182.61,182.51,0.7180702]
[1734849034621,23.776884,182.57,182.51,0.7180702]
[1734849035220,20.0,182.58,182.51,0.7180702]
[1734849035221,23.776884,182.53,182.51,0.7180702]
[1734849035621,1.3695,182.55,182.51,0.7180702]
[1734849036435,20.0,182.52,182.51,0.7180702]
[1734849037119,1.3692,182.59,182.51,0.7180702]
[1734849037332,23.776884,182.58,182.51,0.7180702]
[1734849037638,20.0,182.55,182.51,0.7180702]
[1734849040558,7.66174281,182.61,182.52,2.7356]
[1734849040756,1.3689,182.62,182.53,6.2185]
[1734849042131,1.3687,182.66,182.53,7.04005895]
[1734849042437,7.5132,182.66,182.53,18.37826499]
[1734849043359,7.5132,182.66,182.54,11.33820604]
[1734849043546,7.5132,182.66,182.56,2.7356]
[1734849043944,1.3687,182.66,182.56,2.7356]
[1734849044527,1.3687,182.66,182.57,6.2185]
[1734849044752,20.0,182.64,182.57,6.2185]
[1734849045155,23.776884,182.59,182.57,6.2185]
[1734849045327,20.0,182.56,182.52,8.9541]
[1734849047342,23.776884,182.55,182.52,8.9541]
[1734849048834,2.7379,182.62,182.52,8.9541]
[1734849049142,23.776884,182.57,182.52,8.9541]
[1734849049351,20.0,182.54,182.52,8.9541]
[1734849049548,1.3686,182.66,182.52,8.9541]
[1734849049737,20.0,182.64,182.52,8.9541]
[1734849050755,20.0,182.6,182.52,8.9541]
[1734849051056,23.776884,182.59,182.52,8.9541]
[1734849055662,21.3688,182.64,182.52,8.9541]
[1734849055859,2.19189664,182.66,182.53,11.33820604]
[1734849056065,11.6286,182.67,182.53,11.33820604]
[1734849056665,13.79831041,182.67,182.52,9.77570672]
[1734849056865,13.79831041,182.67,182.53,11.33820604]
[1734849057063,20.0,182.64,182.53,11.33820604]
[1734849057361,23.776884,182.63,182.53,12.15968928]
[1734849058043,11.05151041,182.67,182.53,12.15968928]
[1734849058044,7.5132,182.67,182.55,14.12730604]
[1734849058251,11.22107615,182.7,182.56,12.15955755]
[1734849058450,18.88281915,182.7,182.56,0.82135151]
[1734849059460,20.0,182.67,182.56,0.82135151]
[1734849059852,20.0,182.67,182.58,14.12730604]
[1734849060055,2.23423005,182.72,182.6,6.264]
[1734849060255,1.3681,182.73,182.6,6.264]
[1734849060448,14.127306,182.71,182.6,6.264]
[1734849061270,23.776884,182.7,182.6,6.264]
[1734849061449,20.0,182.67,182.6,6.264]
[1734849063452,6.61900857,182.76,182.61,3.6103227]
[1734849063654,6.61900857,182.76,182.63,18.15270533]
[1734849063861,7.77637634,182.77,182.65,9.0531]
[1734849064051,18.35585007,182.79,182.65,9.87405318]
[1734849064450,16.98815007,182.79,182.66,18.27819533]
[1734849064770,3.57533175,182.82,182.67,7.08479141]
[1734849065069,6.31023175,182.82,182.67,6.264]
[1734849065744,20.0,182.79,182.67,6.264]
[1734849066262,23.776884,182.78,182.67,6.264]
[1734849066562,20.0,182.75,182.67,6.264]
[1734849066746,20.0,182.71,182.67,6.264]
[1734849069868,23.776884,182.7,182.67,6.264]
[1734849070063,20.0,182.68,182.67,6.264]
[1734849070456,20.0,182.67,182.65,2.7891]
[1734849071743,23.776884,182.71,182.65,2.7891]
[1734849072248,20.0,182.68,182.65,2.7891]
[1734849073874,23.776884,182.67,182.63,6.264]
[1734849074252,43.776884,182.64,182.61,2.7891]
[1734849074470,23.776884,182.63,182.58,6.264]
[1734849074680,20.0,182.6,182.58,6.264]
[1734849076049,20.0,182.6,182.56,2.7891]
[1734849076473,23.776884,182.59,182.56,2.7891]
[1734849076675,20.0,182.57,182.56,2.7891]
[1734849077073,20.0,182.57,182.53,9.0305]
[1734849077672,20.0,182.6,182.53,9.0305]
[1734849078260,20.0,182.56,182.53,9.0305]
[1734849078462,20.0,182.56,182.53,6.3712]
[1734849078849,20.0,182.6,182.53,6.3712]
[1734849079067,20.0,182.56,182.53,6.3712]
[1734849079761,1.369,182.62,182.53,6.3712]
[1734849079762,23.776884,182.61,182.53,6.3712]
[1734849079950,20.0,182.58,182.53,6.3712]
[1734849080566,23.776884,182.53,182.51,0.7180702]
[1734849087208,23.71100191,182.53,182.51,0.7180702]
[1734849088295,20.0,182.54,182.51,0.7180702]
[1734849088521,21.3695,182.55,182.51,0.7180702]
[1734849089114,20.0,182.52,182.51,0.7180702]
[1734849090010,43.776884,182.52,182.51,0.7180702]
[1734849092250,20.0,182.48,182.39,9.0305]
[1734849092523,20.0,182.44,182.39,9.0305]
[1734849104156,20.0,182.4,182.35,6.0882]
[1734849108846,20.0,182.4,182.33,11.37726682]
[1734849109517,20.0,182.4,182.32,0.7180702]
[1734849110039,20.0,182.4,182.33,11.37726682]
[1734849110251,20.0,182.4,182.32,12.09533702]
[1734849112131,20.0,182.4,182.33,11.37726682]
[1734849113241,20.0,182.4,182.34,11.37726682]
[1734849113444,20.0,182.4,182.35,11.37726682]
[1734849113645,20.0,182.4,182.34,11.37726682]
[1734849114059,20.0,182.4,182.35,11.37726682]
[1734849114350,20.0,182.4,182.34,11.37726682]
[1734849115626,2.5813,182.44,182.35,11.37726682]
[1734849115827,1.37,182.48,182.36,11.37726682]
[1734849116149,23.776884,182.45,182.36,11.37726682]
[1734849116319,20.0,182.42,182.36,11.37726682]
[1734849117160,20.0,182.42,182.35,11.37726682]
[1734849119651,20.0,182.42,182.33,0.82243309]
[1734849119828,20.0,182.42,182.36,11.37726682]
[1734849120254,20.0,182.42,182.35,11.37726682]
[1734849121725,10.24304281,182.49,182.37,9.165]
[1734849121931,10.24304281,182.49,182.4,11.37726682]
[1734849121932,2.5813,182.49,182.4,11.37726682]
[1734849122651,2.5813,182.49,182.38,11.37726682]
[1734849123256,23.776884,182.48,182.39,11.37726682]
[1734849124754,2.5813,182.49,182.39,11.37726682]
[1734849124938,2.5813,182.49,182.4,11.37726682]
[1734849125338,2.5813,182.49,182.38,11.37726682]
[1734849125742,2.5813,182.49,182.39,11.37726682]
[1734849127477,2.5862,182.54,182.44,11.37726682]
[1734849128546,2.5862,182.54,182.45,11.37726682]
[1734849130174,22.5862,182.54,182.45,11.37726682]
[1734849130376,22.5862,182.54,182.46,11.37726682]
[1734849130589,22.5862,182.54,182.43,20.12549]
[1734849130590,22.5862,182.54,182.45,11.37726682]
[1734849133576,22.35397287,182.54,182.45,11.37726682]
[1734849134479,22.35397287,182.54,182.43,20.12549]
[1734849134480,6.3712,182.62,182.53,11.37726682]
[1734849134775,16.98815007,182.67,182.57,11.37726682]
[1734849134959,16.98815007,182.67,182.58,11.37726682]
[1734849135156,16.98815007,182.67,182.6,11.37726682]
[1734849135357,16.98815007,182.67,182.62,11.37726682]
[1734849135667,16.98815007,182.67,182.55,20.12549]
[1734849135668,6.4786,182.72,182.61,11.37726682]
[1734849135965,6.4786,182.72,182.6,11.37726682]
[1734849136168,6.4786,182.72,182.6,18.1498755]
[1734849136670,20.0,182.69,182.6,18.1498755]
[1734849137272,20.0,182.69,182.59,18.1498755]
[1734849137862,20.0,182.69,182.6,18.1498755]
[1734849139378,20.0,182.65,182.56,18.97111919]
[1734849139758,20.0,182.65,182.52,41.1368755]
[1734849139759,20.0,182.61,182.53,18.97128848]
[1734849143368,20.0,182.61,182.54,18.1498755]
[1734849144682,1.3684,182.69,182.56,18.1498755]
[1734849144981,1.3684,182.69,182.57,0.82137433]
[1734849145156,1.3684,182.69,182.55,18.97130337]
[1734849145663,1.3684,182.69,182.54,18.1498755]
[1734849146385,23.776884,182.63,182.54,18.1498755]
[1734849146584,25.145384,182.67,182.53,18.97130993]
[1734849146892,20.0,182.64,182.54,18.1498755]
[1734849147071,23.776884,182.63,182.55,0.8214786]
[1734849148079,20.0,182.6,182.54,18.1498755]
[1734849148382,20.0,182.6,182.53,18.97136147]
[1734849152796,2.6656,182.63,182.55,18.1498755]
[1734849152973,2.6656,182.63,182.56,18.97128613]
[1734849153875,2.6656,182.63,182.56,0.82141063]
[1734849154887,2.6656,182.63,182.55,0.82144186]
[1734849155795,20.0,182.61,182.53,18.1498755]
[1734849155993,20.0,182.61,182.54,0.82151824]
[1734849159093,23.776884,182.6,182.51,12.17367537]
[1734849159296,23.776884,182.6,182.51,0.82149648]
[1734849159592,20.0,182.57,182.44,0.82159441]
[1734849159805,20.0,182.48,182.39,0.82201534]
[1734849159972,30.90077165,182.48,182.39,0.82201534]
[1734849163289,30.90077165,182.48,182.39,19.01505307]
[1734849165394,30.90077165,182.48,182.39,0.82201534]
[1734849165803,30.90077165,182.48,182.39,19.01505307]
[1734849167394,20.0,182.48,182.39,19.01505307]
[1734849180311,23.776884,182.51,182.39,19.01505307]
[1734849180312,2.7052,182.52,182.43,18.19303773]
[1734849180519,2.7052,182.52,182.45,18.19303773]
[1734849181095,2.7052,182.52,182.46,0.82182728]
[1734849183417,2.7052,182.52,182.44,0.82190198]
[1734849183905,2.7052,182.52,182.42,0.82192019]
[1734849184107,6.1569,182.56,182.46,11.36453412]
[1734849184428,2.7215,182.57,182.49,11.36453412]
[1734849184711,2.7215,182.57,182.5,0.82161144]
[1734849184890,2.7215,182.57,182.5,12.18614556]
[1734849185094,6.4294,182.6,182.51,11.36453412]
[1734849185295,6.4294,182.6,182.52,0.82153814]
[1734849187517,22.7215,182.62,182.52,12.18607226]
[1734849188323,22.7215,182.62,182.53,11.49002412]
[1734849188624,22.7215,182.62,182.54,12.18594003]
[1734849189121,6.4786,182.65,182.55,11.36453412]
[1734849189320,6.4786,182.65,182.56,0.82140605]
[1734849189850,6.4786,182.65,182.56,12.18594017]
[1734849191221,22.8416,182.66,182.57,11.36453412]
[1734849191422,2.8416,182.66,182.59,11.36453412]
[1734849191810,2.8416,182.66,182.6,0.82120701]
[1734849192424,2.8416,182.66,182.58,18.15217558]
[1734849192726,22.8416,182.66,182.57,0.82120679]
[1734849192930,23.776884,182.65,182.56,18.9735517]
[1734849194228,23.776884,182.65,182.57,0.82137847]
[1734849194928,22.8416,182.66,182.57,18.97355405]
[1734849195126,22.8416,182.66,182.58,18.15217558]
[1734849195328,22.8416,182.66,182.57,18.97347803]
[1734849195515,2.8416,182.66,182.59,18.15217558]
[1734849195718,2.8416,182.66,182.6,0.82119452]
[1734849196714,2.8416,182.66,182.6,18.9733701]
[1734849197350,2.8416,182.66,182.58,0.82119034]
[1734849197535,22.8416,182.66,182.58,0.82119034]
[1734849198733,22.8416,182.66,182.58,18.97336592]
[1734849199509,22.8416,182.66,182.58,0.82119034]
[1734849200012,22.8416,182.66,182.58,18.97336592]
[1734849201952,22.8416,182.66,182.59,18.15217558]
[1734849202247,22.8416,182.66,182.59,18.97341097]
[1734849203257,22.8416,182.66,182.59,18.15217558]
[1734849203852,2.8416,182.66,182.59,18.15217558]
[1734849204234,22.8416,182.66,182.59,18.15217558]
[1734849204636,22.8416,182.66,182.6,18.15217558]
[1734849204858,2.8416,182.66,182.6,18.15217558]
[1734849205354,2.8416,182.66,182.61,18.97341208]
[1734849207059,2.8476,182.71,182.62,0.12549]
[1734849207364,6.1624,182.73,182.62,0.12549]
[1734849207365,2.8476,182.75,182.67,18.15217558]
[1734849207547,2.8476,182.75,182.68,18.15217558]
[1734849207870,2.8476,182.75,182.69,18.15217558]
[1734849208250,2.8476,182.75,182.7,18.97299775]
[1734849209945,2.7355,182.79,182.72,18.15217558]
[1734849210162,2.7355,182.79,182.73,0.82063659]
[1734849210343,2.7355,182.79,182.72,18.15217558]
[1734849210651,2.7355,182.79,182.73,18.15217558]
[1734849211144,2.7355,182.79,182.74,0.82058401]
[1734849211336,22.7355,182.79,182.74,18.97275959]
[1734849211538,2.7355,182.83,182.76,18.15217558]
[1734849212853,2.7355,182.83,182.77,18.15217558]
[1734849213445,9.0775,182.87,182.79,18.15217558]
[1734849213630,2.7355,182.87,182.81,18.15217558]
[1734849213822,6.342,182.91,182.82,18.97242657]
[1734849214024,6.342,182.91,182.83,18.15217558]
[1734849214727,6.342,182.91,182.82,18.15217558]
[1734849214930,6.342,182.91,182.81,18.15217558]
[1734849215738,20.0,182.88,182.81,18.15217558]
[1734849216254,6.342,182.91,182.81,18.15217558]
[1734849216255,23.776884,182.9,182.81,18.15217558]
[1734849216631,23.776884,182.9,182.82,18.15217558]
[1734849217327,23.776884,182.9,182.8,18.15217558]
[1734849218332,23.776884,182.9,182.81,18.15217558]
[1734849218854,23.776884,182.9,182.8,18.15217558]
[1734849221036,20.0,182.87,182.79,18.15217558]
[1734849221353,20.0,182.87,182.77,18.15217558]
[1734849221354,23.776884,182.86,182.77,18.15217558]
[1734849223254,2.6729,182.85,182.77,18.15217558]
[1734849223455,23.776884,182.84,182.77,18.15217558]
[1734849223751,23.776884,182.84,182.76,18.15217558]
[1734849225453,2.6729,182.85,182.77,18.15217558]
[1734849225644,2.6729,182.85,182.8,18.15217558]
[1734849225961,2.6729,182.85,182.81,18.15217558]
[1734849226651,20.0,182.88,182.81,18.15217558]
[1734849226953,2.6729,182.89,182.8,13.80159]
[1734849227149,2.6729,182.89,182.84,18.15217558]
[1734849229432,2.6729,182.89,182.85,18.15217558]
[1734849229628,20.0,182.93,182.86,18.15217558]
[1734849229830,20.0,182.93,182.85,18.15217558]
[1734849230440,23.776884,182.92,182.84,18.15217558]
[1734849237364,20.0,182.93,182.84,18.15217558]
[1734849238039,20.0,182.93,182.84,11.31435906]
[1734849238792,20.0,182.93,182.83,11.31435906]
[1734849239785,20.0,182.93,182.84,11.31435906]
[1734849240368,2.6857,182.94,182.89,11.31435906]
[1734849240777,2.6857,182.94,182.88,11.31435906]
[1734849241174,20.0,182.93,182.85,11.31435906]
[1734849241366,20.0,182.93,182.84,11.31435906]
[1734849242075,20.0,182.93,182.84,18.10162322]
[1734849242266,20.0,182.93,182.85,18.10162322]
[1734849242870,20.0,182.93,182.86,18.10162322]
[1734849243064,20.0,182.93,182.87,18.10162322]
[1734849243264,2.6857,182.94,182.87,18.10162322]
[1734849243461,2.6857,182.94,182.88,0.81996411]
[1734849244481,2.6857,182.94,182.86,18.92159607]
[1734849245081,2.6857,182.94,182.87,18.10162322]
[1734849246182,2.6857,182.94,182.86,18.92159607]
[1734849246486,2.6857,182.94,182.82,14.49429085]
[1734849246663,20.0,182.93,182.83,18.10162322]
[1734849247179,20.0,182.93,182.84,18.92177961]
[1734849247482,2.6857,182.94,182.84,18.92177961]
[1734849247483,2.6857,182.94,182.87,18.10162322]
[1734849247660,2.6857,182.94,182.88,18.92157116]
[1734849248172,0.7180702,182.97,182.9,18.10162322]
[1734849248479,0.7180702,182.97,182.91,18.9214511]
[1734849248685,0.7180702,182.97,182.92,18.10162322]
[1734849249184,0.7180702,182.97,182.93,18.92135995]
[1734849249655,0.7180702,182.97,182.89,2.7215]
[1734849249656,0.7180702,182.97,182.92,18.10162322]
[1734849249883,0.7180702,182.97,182.88,18.10162322]
[1734849250061,0.7180702,182.97,182.87,18.10162322]
[1734849250289,0.7180702,182.97,182.88,18.10162322]
[1734849251192,0.7180702,182.97,182.9,18.10162322]
[1734849252774,0.7180702,182.97,182.89,18.92158765]
[1734849253387,0.7180702,182.97,182.9,18.10162322]
[1734849253589,23.776884,182.94,182.8,20.80441917]
[1734849253759,20.0,182.91,182.8,25.23024239]
[1734849253966,20.0,182.91,182.8,24.41032322]
[1734849254167,20.0,182.91,182.81,18.10162322]
[1734849254560,20.0,182.91,182.8,7.12898028]
[1734849254561,20.0,182.91,182.82,18.10162322]
[1734849254887,20.0,182.91,182.82,18.9218764]
[1734849255094,20.0,182.91,182.83,18.10162322]
[1734849255587,20.0,182.95,182.86,18.10162322]
[1734849257480,23.776884,182.94,182.84,18.92181417]
[1734849257667,20.0,182.91,182.81,18.92166468]
[1734849258683,20.0,182.91,182.78,2.7215]
[1734849258684,29.845384,182.9,182.79,0.82033966]
[1734849258858,2.7217,182.89,182.78,18.10162322]
[1734849259064,2.7217,182.89,182.79,18.10162322]
[1734849259383,20.0,182.85,182.76,18.10162322]
[1734849259587,20.0,182.85,182.74,18.10162322]
[1734849259775,20.0,182.85,182.73,18.10162322]
[1734849260197,20.0,182.85,182.71,18.92216247]
[1734849260389,20.0,182.81,182.71,18.10162322]
[1734849260574,8.7902,182.8,182.71,18.10162322]
[1734849260885,8.7902,182.8,182.7,18.10162322]
[1734849261884,8.7902,182.8,182.66,6.3104]
[1734849261885,20.0,182.77,182.66,6.3104]
[1734849262065,20.0,182.76,182.65,18.92243215]
[1734849262264,20.0,182.76,182.64,18.10162322]
[1734849262471,23.776884,182.75,182.63,18.10162322]
[1734849264185,1.3676,182.79,182.63,18.10162322]
[1734849264186,20.0,182.77,182.68,18.10162322]
[1734849264388,20.0,182.77,182.7,18.10162322]
[1734849264567,20.0,182.77,182.69,18.92245978]
[1734849264986,8.7902,182.8,182.72,18.10162322]
[1734849265292,2.7217,182.8,182.74,18.10162322]
[1734849266383,6.0685,182.84,182.74,18.10162322]
[1734849266569,6.0685,182.84,182.76,18.10162322]
[1734849266769,20.0,182.85,182.77,18.10162322]
[1734849267178,2.7217,182.86,182.77,18.10162322]
[1734849267377,2.7217,182.86,182.78,18.10162322]
[1734849267971,2.7217,182.86,182.79,0.82037694]
[1734849268178,2.7217,182.86,182.78,18.10162322]
[1734849269195,6.0685,182.88,182.79,18.9220074]
[1734849271194,6.0685,182.88,182.79,0.82038418]
[1734849271379,43.776884,182.84,182.71,18.92198746]
[1734849271698,23.776884,182.83,182.71,18.92198746]
[1734849271989,20.0,182.8,182.71,0.82036424]
[1734849272295,20.0,182.8,182.7,18.10162322]
[1734849273273,20.0,182.8,182.68,18.10162322]
[1734849273274,23.776884,182.79,182.68,18.10162322]
[1734849273474,29.845384,182.79,182.67,18.10162322]
[1734849274198,20.0,182.76,182.66,30.28944214]
[1734849276788,20.0,182.76,182.67,29.46865785]
[1734849277177,23.776884,182.75,182.67,29.46865785]
[1734849277890,23.776884,182.75,182.66,29.46865785]
[1734849278295,20.0,182.76,182.68,29.46865785]
[1734849279502,2.7646,182.87,182.75,29.46865785]
[1734849280295,2.7646,182.87,182.74,29.46865785]